bitfinex/quotes_SOLUSD_20251013
["timestamp","ask_amount","ask_price","bid_price","bid_amount"]
[1760353313836,0.7,195.02,194.98,60.0]
[1760353314041,20.8,195.04,194.98,60.0]
[1760353314042,1.20771731,195.01,194.98,60.0]
[1760353314222,21.5,195.0,194.98,60.0]
[1760353314431,18.6264912,194.99,194.98,60.0]
[1760353314628,6.54229868,194.9,194.89,0.71]
[1760353314823,7.05001599,194.9,194.89,0.71]
[1760353315040,11.38419252,194.98,194.89,0.71]
[1760353315240,6.54229868,194.9,194.84,0.71]
[1760353315419,21.30771731,194.97,194.85,0.71]
[1760353315743,20.8,194.95,194.85,0.71]
[1760353315942,0.50771731,194.94,194.86,6.54229868]
[1760353316240,0.0951253,194.88,194.84,11.38971684]
[1760353316541,0.60284261,194.88,194.81,0.1]
[1760353316743,20.8,194.85,194.81,0.1]
[1760353317043,1.20771731,194.84,194.81,0.1]
[1760353317243,0.7,194.83,194.81,0.1]
[1760353317539,0.7,194.83,194.66,2.6777889]
[1760353317540,146.34138546,194.69,194.66,2.6777889]
[1760353317922,145.26138546,194.69,194.62,0.26299066]
[1760353318136,145.26138546,194.69,194.68,6.54229868]
[1760353318334,145.26138546,194.69,194.6,2.67803703]
[1760353318335,145.26138546,194.69,194.6,22.67803702]
[1760353318543,145.26138546,194.69,194.68,6.54229868]
[1760353318735,145.26138546,194.69,194.68,22.55540836]
[1760353318931,145.26138546,194.69,194.68,5.13663447]
[1760353319134,62.31023647,194.69,194.68,25.93663447]
[1760353319340,0.0951253,194.88,194.69,10.87647521]
[1760353319341,6.54229868,194.81,194.69,10.87647521]
[1760353319659,0.64151911,194.85,194.73,20.8]
[1760353319950,0.7951253,194.88,194.74,0.26222551]
[1760353320243,20.8,194.78,194.74,0.26222551]
[1760353320421,20.8,194.74,194.69,11.13889849]
[1760353320750,20.64145326,194.87,194.59,42.0643847]
[1760353320751,20.8,194.71,194.61,0.26268639]
[1760353320917,20.8,194.71,194.62,17.9836428]
[1760353321123,0.64181556,194.76,194.62,17.9836428]
[1760353321425,0.64181556,194.76,194.66,10.87647521]
[1760353321623,0.64178261,194.77,194.67,0.2627395]
[1760353321933,21.44151911,194.85,194.76,6.54229868]
[1760353322158,20.8,194.78,194.75,6.54229868]
[1760353322368,0.64151911,194.85,194.77,6.54229868]
[1760353322665,0.73654566,194.88,194.82,20.8]
[1760353322877,0.73654566,194.88,194.81,0.26181674]
[1760353323169,0.09979698,194.9,194.87,6.54229868]
[1760353323170,1e-08,194.9,194.87,6.54229868]
[1760353323372,1e-08,194.9,194.83,31.13826506]
[1760353323373,1e-08,194.93,194.89,27.34229868]
[1760353323531,1e-08,194.95,194.93,10.87647521]
[1760353323860,0.64076276,195.08,194.95,10.87647521]
[1760353324156,0.64066424,195.11,195.07,6.54229868]
[1760353324358,0.7,195.1,195.02,0.26027799]
[1760353324654,0.7,195.13,195.07,17.41877389]
[1760353324855,6.54229868,195.1,195.02,0.26014559]
[1760353325054,7.24229868,195.12,195.05,6.54229868]
[1760353325230,6.54229868,195.08,195.01,10.87647521]
[1760353325428,0.7,195.09,195.01,10.87647521]
[1760353325657,20.8,195.04,194.98,0.26054037]
[1760353325848,6.54229868,195.03,194.98,5.12866922]
[1760353326154,6.54229868,195.03,194.93,0.26080336]
[1760353326155,27.34229868,195.01,194.93,0.26080336]
[1760353326455,0.64092703,195.03,194.96,6.54229868]
[1760353326456,6.54229868,195.03,194.96,6.54229868]
[1760353326659,20.8,195.0,194.93,0.26089589]
[1760353326841,20.8,194.99,194.92,16.00674563]
[1760353327045,1.34109139,194.98,194.88,6.54229868]
[1760353327240,20.8,195.01,194.95,6.54229868]
[1760353327241,20.8,194.99,194.95,6.54229868]
[1760353327443,20.8,194.93,194.85,0.26129005]
[1760353327660,20.8,194.93,194.85,11.13776526]
[1760353327954,20.8,194.91,194.85,11.13776526]
[1760353328265,0.64128873,194.92,194.86,6.54229868]
[1760353328639,0.7,194.95,194.88,6.54229868]
[1760353328959,20.8,194.89,194.85,0.26142231]
[1760353329153,6.54229868,194.87,194.81,6.54229868]
[1760353329349,20.8,194.88,194.84,6.54229868]
[1760353329558,1.34122294,194.94,194.86,6.54229868]
[1760353329751,1.34122294,194.94,194.81,0.26185573]
[1760353329752,6.54229868,194.88,194.81,0.26185573]
[1760353329946,27.34229868,194.87,194.81,6.54229868]
[1760353330154,27.34229868,194.87,194.8,0.26185573]
[1760353330155,20.8,194.84,194.8,11.13833094]
[1760353330475,6.54229868,194.85,194.78,6.54229868]
[1760353330641,20.8,194.85,194.82,6.54229868]
[1760353330838,20.8,194.85,194.81,6.54229868]
[1760353331109,0.7,194.89,194.82,17.41877389]
[1760353331239,0.7,194.92,194.84,6.54229868]
[1760353331578,6.54229868,194.94,194.88,6.54229868]
[1760353331744,0.64112427,194.97,194.86,10.87647521]
[1760353331949,5.54,194.98,194.87,0.26139548]
[1760353332180,5.54,194.98,194.95,6.54229868]
[1760353332337,5.54,194.98,194.93,6.54229868]
[1760353332338,0.7,194.97,194.93,6.54229868]
[1760353332542,20.8,194.93,194.83,31.93763369]
[1760353332853,20.8,194.93,194.91,6.54229868]
[1760353333171,6.54229868,194.93,194.86,0.2614229]
[1760353333340,20.8,194.9,194.84,5.39393006]
[1760353333540,7.18358741,194.92,194.84,5.39393006]
[1760353333541,6.54229868,194.91,194.84,5.39393006]
[1760353333764,6.54229868,194.9,194.84,11.93622874]
[1760353333941,0.7,194.94,194.86,6.54229868]
[1760353334137,27.34229868,194.92,194.86,6.54229868]
[1760353334365,6.54229868,194.91,194.85,6.54229868]
[1760353334550,0.7,194.91,194.84,6.8038124]
[1760353334752,27.34229868,194.92,194.86,6.54229868]
[1760353334968,21.5,194.92,194.86,6.54229868]
[1760353335168,28.04229868,194.92,194.86,6.54229868]
[1760353335388,6.54229868,194.9,194.84,0.26159362]
[1760353335686,0.64115716,194.96,194.86,6.54229868]
[1760353335890,0.64115716,194.96,194.86,6.80373377]
[1760353335891,6.54229868,194.93,194.86,6.80373377]
[1760353336070,6.54229868,194.92,194.86,0.26143509]
[1760353336269,0.10885163,194.87,194.86,11.1379103]
[1760353336463,0.10885163,194.87,194.86,17.68020898]
[1760353336661,0.10885163,194.87,194.86,22.81209854]
[1760353337270,0.10885163,194.87,194.86,0.26143509]
[1760353337475,0.10885163,194.87,194.84,5.13241634]
[1760353337795,0.10885163,194.87,194.85,0.261763]
[1760353338160,20.90885163,194.87,194.84,9.79992271]
[1760353338364,0.10885163,194.87,194.85,9.79992271]
[1760353338677,10.51992271,194.86,194.79,9.79992271]
[1760353338872,10.51992271,194.86,194.8,0.26198813]
[1760353339191,9.79992271,194.81,194.72,9.79992271]
[1760353339357,31.96160648,194.8,194.73,9.79992271]
[1760353339565,20.8,194.8,194.76,9.79992271]
[1760353339867,0.72,194.79,194.75,9.79992271]
[1760353340064,0.72,194.78,194.72,9.79992271]
[1760353340268,20.8,194.75,194.72,9.79992271]
[1760353340474,0.72,194.81,194.74,9.79992271]
[1760353340677,20.8,194.79,194.75,9.79992271]
[1760353340871,0.72,194.81,194.76,10.06222617]
[1760353341073,0.72,194.8,194.73,0.26230346]
[1760353341271,9.79992271,194.79,194.73,0.26230346]
[1760353341590,9.79992271,194.75,194.67,5.39920986]
[1760353341786,20.8,194.76,194.69,9.79992271]
[1760353341972,20.8,194.76,194.7,0.26266077]
[1760353342173,21.44151911,194.85,194.74,9.79992271]
[1760353342486,0.10885163,194.87,194.79,9.79992271]
[1760353342487,0.72,194.86,194.79,9.79992271]
[1760353342686,0.72,194.86,194.8,0.26196124]
[1760353342898,9.79992271,194.84,194.8,0.26196124]
[1760353343086,20.8,194.79,194.71,10.87647521]
[1760353343285,31.31992271,194.79,194.73,9.79992271]
[1760353343496,21.52,194.79,194.74,0.26238284]
[1760353343672,0.72,194.78,194.74,0.26238284]
[1760353343875,0.72,194.77,194.72,0.26238284]
[1760353344072,20.8,194.74,194.7,5.39858733]
[1760353344272,20.8,194.74,194.69,9.79992271]
[1760353344472,20.8,194.74,194.68,0.2627942]
[1760353344681,0.72,194.73,194.68,0.2627942]
[1760353344881,20.8,194.7,194.66,0.26279419]
[1760353345197,20.8,194.68,194.65,0.1]
[1760353345377,10.51992271,194.69,194.65,0.1]
[1760353345585,0.72,194.68,194.65,0.1]
[1760353345897,20.8,194.66,194.65,0.1]
[1760353346093,21.52,194.66,194.65,0.1]
[1760353346483,20.8,194.66,194.65,0.1]
[1760353346800,0.72,194.7,194.65,0.1]
[1760353346985,20.8,194.66,194.65,0.1]
[1760353347183,0.72,194.69,194.65,0.1]
[1760353347383,0.72,194.74,194.66,9.79992271]
[1760353347598,20.8,194.69,194.65,15.03728631]
[1760353347891,0.72,194.73,194.66,0.26296286]
[1760353348073,9.79992271,194.72,194.66,0.26296286]
[1760353348272,9.79992271,194.71,194.66,0.26296286]
[1760353348494,0.72,194.71,194.66,0.26296286]
[1760353348667,0.72,194.71,194.65,0.1]
[1760353348668,10.51992271,194.7,194.65,0.1]
[1760353348871,9.79992271,194.68,194.65,0.1]
[1760353349174,20.8,194.67,194.65,0.1]
[1760353349373,21.52,194.67,194.65,0.1]
[1760353349774,0.72,194.66,194.65,0.1]
[1760353350293,0.72,194.73,194.65,5.23737516]
[1760353350496,10.51992271,194.73,194.66,0.26285793]
[1760353350680,20.8,194.7,194.66,10.06278064]
[1760353350883,9.79992271,194.75,194.68,9.79992271]
[1760353351092,0.72,194.77,194.71,9.79992271]
[1760353351397,0.72,194.79,194.76,9.79992271]
[1760353351596,0.72,194.78,194.74,9.79992271]
[1760353351803,10.51992271,194.81,194.75,0.26236937]
[1760353351976,0.72,194.81,194.75,0.26236937]
[1760353352181,20.8,194.76,194.67,11.13884458]
[1760353352490,20.8,194.77,194.67,11.13884458]
[1760353352491,0.72,194.77,194.71,9.79992271]
[1760353352695,0.72,194.77,194.72,0.26258206]
[1760353352885,0.72,194.76,194.72,14.93537197]
[1760353353086,20.8,194.76,194.72,14.93537197]
[1760353353285,9.79992271,194.79,194.72,14.93537197]
[1760353353615,0.72,194.78,194.72,14.93537197]
[1760353353807,9.79992271,194.76,194.7,0.26254165]
[1760353354014,31.31992271,194.75,194.68,5.39918839]
[1760353354311,9.79992271,194.71,194.63,10.87647521]
[1760353354501,0.72,194.73,194.67,9.79992271]
[1760353354810,20.8,194.7,194.66,9.79992271]
[1760353355010,0.72,194.69,194.65,0.1]
[1760353355199,20.8,194.71,194.65,9.89992271]
[1760353355505,20.8,194.68,194.65,0.1]
[1760353355707,20.8,194.7,194.65,9.89992271]
[1760353356016,0.72,194.74,194.68,9.79992271]
[1760353356195,20.8,194.7,194.65,5.23738462]
[1760353356407,0.09783233,194.67,194.66,9.79992271]
[1760353356707,0.09783233,194.67,194.65,15.03730733]
[1760353356904,21.61783233,194.67,194.65,0.1]
[1760353357318,0.72,194.66,194.65,0.1]
[1760353357485,21.52,194.66,194.65,0.1]
[1760353357814,0.72,194.66,194.65,0.1]
[1760353358007,21.52,194.66,194.65,0.1]
[1760353358607,0.09783233,194.67,194.65,0.1]
[1760353358799,0.09783233,194.67,194.66,9.79992271]
[1760353358993,0.09783233,194.67,194.65,5.50041507]
[1760353359500,0.09783233,194.67,194.66,9.79992271]
[1760353359895,0.09783233,194.67,194.66,20.67639792]
[1760353360101,1e-08,194.67,194.66,20.67639792]
[1760353360398,1e-08,194.68,194.67,10.87647521]
[1760353360601,1e-08,194.7,194.67,20.93932104]
[1760353360803,0.64145327,194.87,194.67,20.93932104]
[1760353360804,1e-08,194.73,194.72,10.87647521]
[1760353360993,1e-08,194.74,194.72,20.93899128]
[1760353361196,1e-08,194.74,194.73,20.67639792]
[1760353361411,1e-08,194.75,194.73,9.79992271]
[1760353361714,1e-08,194.75,194.74,11.13896293]
[1760353361931,1e-08,194.75,194.74,0.26248772]
[1760353362220,1e-08,194.75,194.72,10.06241042]
[1760353362513,0.72000001,194.75,194.71,17.97545066]
[1760353362721,0.72000001,194.75,194.71,27.77537337]
[1760353362908,1e-08,194.75,194.73,9.79992271]
[1760353363103,1e-08,194.75,194.72,0.2625941]
[1760353363301,0.72,194.74,194.69,0.26260834]
[1760353363522,10.51992271,194.73,194.66,5.13690571]
[1760353363720,10.51992271,194.73,194.67,9.79992271]
[1760353364019,9.79992271,194.72,194.66,15.1997276]
[1760353364197,10.51992271,194.73,194.67,9.79992271]
[1760353364592,20.8,194.73,194.7,9.79992271]
[1760353364915,20.8,194.73,194.71,5.13584304]
[1760353365114,1e-08,194.75,194.72,0.26261959]
[1760353365309,0.66,194.74,194.7,14.93599312]
[1760353365522,1e-08,194.75,194.71,0.26263307]
[1760353365712,1e-08,194.75,194.73,9.79992271]
[1760353365911,1e-08,194.75,194.7,28.85281269]
[1760353365912,1e-08,194.75,194.74,20.93888564]
[1760353366219,1e-08,194.75,194.74,30.73880835]
[1760353366706,6.21,194.91,194.75,10.87647521]
[1760353366905,9.79992271,194.87,194.81,9.79992271]
[1760353367107,20.8,194.8,194.76,0.26189606]
[1760353367314,0.67,194.79,194.74,9.79992271]
[1760353367623,0.67,194.79,194.75,9.79992271]
[1760353367821,0.67,194.78,194.74,9.79992271]
[1760353368008,20.8,194.74,194.7,9.79992271]
[1760353368206,0.67,194.73,194.69,15.19880945]
[1760353368600,0.67,194.73,194.7,9.79992271]
[1760353368801,0.64151911,194.85,194.73,5.13531556]
[1760353369020,0.67,194.81,194.76,9.79992271]
[1760353369203,0.67,194.8,194.76,9.79992271]
[1760353369413,20.8,194.82,194.77,9.79992271]
[1760353369718,0.67,194.81,194.76,9.79992271]
[1760353369931,0.67,194.8,194.76,9.79992271]
[1760353370314,21.47,194.8,194.76,10.06220066]
[1760353370516,21.47,194.8,194.77,9.79992271]
[1760353370705,20.8,194.8,194.77,9.79992271]
[1760353371029,0.67,194.83,194.79,14.93361544]
[1760353371205,0.67,194.86,194.8,0.26203989]
[1760353371403,9.79992271,194.85,194.8,0.26203989]
[1760353371610,0.67,194.84,194.79,5.13371923]
[1760353371818,0.67,194.83,194.78,10.0619626]
[1760353372104,9.79992271,194.81,194.74,5.39712086]
[1760353372305,31.26992271,194.82,194.75,9.79992271]
[1760353372517,21.47,194.82,194.76,10.06217444]
[1760353372716,20.8,194.81,194.78,9.79992271]
[1760353372911,20.8,194.81,194.79,5.13373376]
[1760353373114,20.8,194.81,194.75,0.26211922]
[1760353373115,10.46992271,194.8,194.75,0.26211922]
[1760353373317,0.67,194.8,194.75,9.79992271]
[1760353373626,0.64145327,194.87,194.78,9.79992271]
[1760353373849,5.54,194.91,194.86,9.79992271]
[1760353374002,0.67,194.9,194.81,0.26163325]
[1760353374339,5.54,194.91,194.89,9.79992271]
[1760353374511,5.54,194.91,194.9,0.26143383]
[1760353374701,5.54,194.91,194.9,20.67639792]
[1760353374900,5.54,194.91,194.9,25.80723424]
[1760353375130,5.54,194.91,194.9,26.06866808]
[1760353375331,0.67,195.0,194.9,18.21936097]
[1760353375524,0.67,195.06,194.99,9.79992271]
[1760353375723,0.67,195.06,195.03,9.79992271]
[1760353375904,0.84053292,195.15,195.05,9.79992271]
[1760353376109,1e-08,195.15,195.14,9.79992271]
[1760353376306,1e-08,195.17,195.16,20.8]
[1760353376510,1e-08,195.17,195.16,71.53601942]
[1760353376711,0.63977889,195.38,195.24,20.8]
[1760353376922,0.67,195.37,195.35,9.79992271]
[1760353377211,0.2,195.39,195.35,9.79992271]
[1760353377411,0.67,195.38,195.32,20.8]
[1760353377622,0.2,195.39,195.33,20.2585452]
[1760353377820,0.67,195.37,195.33,0.25854521]
[1760353378037,0.2,195.39,195.33,0.25854521]
[1760353378338,0.2,195.39,195.37,20.8]
[1760353378513,0.2,195.39,195.38,20.8]
[1760353378712,0.63909197,195.59,195.47,20.8]
[1760353379024,4.30017763,195.66,195.47,20.8]
[1760353379025,0.63889598,195.65,195.58,32.33395709]
[1760353379208,0.2,195.68,195.65,11.53395709]
[1760353379408,0.2,195.68,195.63,20.8]
[1760353379607,0.2,195.68,195.67,11.53395709]
[1760353379808,0.2,195.68,195.62,19.99999999]
[1760353379809,0.2,195.68,195.49,19.99999999]
[1760353380015,11.73395709,195.68,195.47,0.72]
[1760353380214,0.67,195.67,195.46,22.06438471]
[1760353380438,0.67,195.66,195.37,20.71999999]
[1760353380645,0.67,195.66,195.17,17.54367448]
[1760353380646,20.8,195.61,195.39,11.53395709]
[1760353380842,18.08650097,195.68,195.4,0.72]
[1760353380843,11.53395709,195.51,195.4,0.72]
[1760353381044,11.53395709,195.49,195.4,0.72]
[1760353381342,0.6394516,195.48,195.4,0.72]
[1760353381532,20.8,195.51,195.4,0.72]
[1760353381842,0.63938618,195.5,195.4,0.72]
[1760353382044,0.63919001,195.56,195.4,0.72]
[1760353382342,11.53395709,195.54,195.41,0.25790344]
[1760353382533,0.67,195.55,195.44,11.53395709]
[1760353382733,0.67,195.55,195.46,10.87647521]
[1760353383039,20.8,195.44,195.35,10.87647521]
[1760353383348,20.8,195.34,195.14,42.0643847]
[1760353383554,11.53395709,195.29,195.16,0.72]
[1760353383718,0.67,195.28,195.16,0.72]
[1760353383920,11.53395709,195.26,195.19,0.72]
[1760353384143,11.53395709,195.24,195.16,11.53395709]
[1760353384437,0.64007373,195.29,195.06,19.99999999]
[1760353384645,0.67,195.28,195.14,11.53395709]
[1760353384948,10.87647521,195.26,194.99,19.99999999]
[1760353385240,11.53395709,195.23,195.11,0.72]
[1760353385445,20.8,195.2,194.99,19.99999999]
[1760353385624,20.8,195.17,195.05,0.72]
[1760353385823,0.64040165,195.19,195.05,0.72]
[1760353386054,0.67,195.25,195.12,11.53395709]
[1760353386353,0.64004096,195.3,195.15,19.99999999]
[1760353386521,0.6397134,195.4,195.28,11.53395709]
[1760353386721,5.54,195.41,195.31,11.53395709]
[1760353386942,5.54,195.41,195.33,10.87647521]
[1760353387316,5.54,195.41,195.39,11.53395709]
[1760353387529,0.67,195.56,195.41,10.87647521]
[1760353387728,11.53395709,195.45,195.34,0.72]
[1760353387942,11.53395709,195.38,195.28,0.72]
[1760353388142,0.67,195.41,195.28,0.72]
[1760353388452,20.8,195.43,195.32,11.53395709]
[1760353388657,0.67,195.45,195.24,20.8]
[1760353388658,11.53395709,195.41,195.24,20.8]
[1760353388838,0.63938618,195.5,195.31,11.53395709]
[1760353388839,11.53395709,195.38,195.31,11.53395709]
[1760353389029,0.63938618,195.5,195.23,20.8]
[1760353389030,1.30951703,195.46,195.32,0.72]
[1760353389355,0.67,195.46,195.35,11.53395709]
[1760353389550,11.53395709,195.44,195.36,0.72]
[1760353389737,11.53395709,195.42,195.36,11.53395709]
[1760353389928,0.67,195.45,195.33,10.87647521]
[1760353389929,0.6396152,195.43,195.33,10.87647521]
[1760353390135,11.53395709,195.41,195.35,11.53395709]
[1760353390335,20.8,195.39,195.32,11.53395709]
[1760353390642,32.33395709,195.39,195.32,11.53395709]
[1760353390845,11.53395709,195.38,195.32,11.53395709]
[1760353391039,11.53395709,195.37,195.3,11.53395709]
[1760353391240,20.8,195.38,195.33,11.53395709]
[1760353391556,0.67,195.6,195.41,31.67647521]
[1760353391748,11.53395709,195.59,195.48,10.87647521]
[1760353391954,11.53395709,195.57,195.47,10.87647521]
[1760353392134,20.8,195.53,195.5,11.53395709]
[1760353392335,12.20395709,195.53,195.42,10.87647521]
[1760353392543,11.53395709,195.49,195.42,11.53395709]
[1760353392759,20.8,195.45,195.26,19.99999999]
[1760353392969,20.8,195.39,195.33,0.72]
[1760353393263,0.63977889,195.38,195.31,11.53395709]
[1760353393434,20.8,195.34,195.22,0.72]
[1760353393642,0.67,195.37,195.29,11.53395709]
[1760353393851,5.11683423,195.44,195.33,11.53395709]
[1760353393852,0.67,195.42,195.33,11.53395709]
[1760353394052,11.53395709,195.35,195.14,19.99999999]
[1760353394360,1.3099099,195.34,195.15,0.72]
[1760353394662,1.3099099,195.34,195.2,11.53395709]
[1760353394663,20.8,195.24,195.2,11.53395709]
[1760353394854,20.8,195.31,195.2,11.53395709]
[1760353394855,20.8,195.28,195.23,11.53395709]
[1760353395171,20.8,195.28,195.24,12.25395709]
[1760353395341,20.8,195.28,195.24,11.53395709]
[1760353395540,11.53395709,195.26,195.19,11.53395709]
[1760353395742,10.87647521,195.33,195.24,11.53395709]
[1760353395743,20.8,195.33,195.24,11.53395709]
[1760353395963,32.33395709,195.33,195.27,11.53395709]
[1760353396166,20.8,195.31,195.28,11.53395709]
[1760353396352,0.10659014,195.29,195.25,11.53395709]
[1760353396751,20.90659014,195.29,195.23,10.87647521]
[1760353397066,0.10659014,195.29,195.25,10.87647521]
[1760353397266,0.10659014,195.29,195.26,11.53395709]
[1760353397483,0.10659014,195.29,195.25,11.56647521]
[1760353397484,20.8,195.26,195.19,0.69]
[1760353397656,11.53395709,195.28,195.19,0.69]
[1760353397657,20.8,195.28,195.19,11.53395709]
[1760353397969,20.8,195.28,195.2,11.53395709]
[1760353398269,11.64054723,195.29,195.22,11.53395709]
[1760353398441,0.10659014,195.29,195.28,22.4104323]
[1760353398642,0.10132865,195.3,195.29,10.87647521]
[1760353398867,0.10132865,195.3,195.18,19.99999999]
[1760353399057,0.10132865,195.3,195.28,0.69]
[1760353399369,0.10132865,195.3,195.28,10.02956343]
[1760353399567,0.10132865,195.3,195.29,10.02956343]
[1760353399755,0.09304658,195.31,195.3,10.87647521]
[1760353399943,0.09304658,195.31,195.3,21.59603864]
[1760353400146,0.10256899,195.33,195.31,10.87647521]
[1760353400344,0.68,195.49,195.34,10.87647521]
[1760353400652,0.63919001,195.56,195.42,10.02956343]
[1760353400962,10.02956343,195.47,195.39,0.69]
[1760353401158,10.02956343,195.43,195.3,0.69]
[1760353401471,10.02956343,195.37,195.31,10.02956343]
[1760353401642,0.68,195.39,195.3,20.90603864]
[1760353401841,20.8,195.39,195.31,10.02956343]
[1760353402038,30.82956343,195.39,195.33,10.02956343]
[1760353402240,30.82956343,195.38,195.32,10.02956343]
[1760353402440,30.82956343,195.4,195.3,0.69]
[1760353402672,10.02956343,195.38,195.31,10.02956343]
[1760353402877,20.8,195.39,195.33,10.02956343]
[1760353403052,30.82956343,195.39,195.33,10.02956343]
[1760353403250,0.63954975,195.45,195.35,10.02956343]
[1760353403451,10.02956343,195.42,195.29,20.8]
[1760353403660,0.68,195.44,195.35,10.02956343]
[1760353403854,0.68,195.44,195.34,10.02956343]
[1760353404152,20.8,195.41,195.31,11.56647521]
[1760353404350,0.68,195.47,195.37,10.02956343]
[1760353404574,20.8,195.43,195.37,10.02956343]
[1760353404784,30.82956343,195.43,195.37,10.02956343]
[1760353404946,30.82956343,195.43,195.32,11.56647521]
[1760353405143,0.68,195.46,195.39,10.02956343]
[1760353405348,0.68,195.49,195.39,10.02956343]
[1760353405548,10.02956343,195.48,195.37,10.87647521]
[1760353405773,10.70956343,195.49,195.42,10.02956343]
[1760353405972,0.68,195.53,195.44,10.02956343]
[1760353406278,30.82956343,195.5,195.43,10.02956343]
[1760353406475,1.31928808,195.53,195.44,10.02956343]
[1760353406772,10.02956343,195.53,195.47,10.02956343]
[1760353406955,0.68,195.56,195.49,10.02956343]
[1760353407156,0.68,195.56,195.44,0.69]
[1760353407357,10.02956343,195.51,195.45,10.02956343]
[1760353407548,0.68,195.56,195.46,10.02956343]
[1760353407754,10.02956343,195.57,195.51,10.02956343]
[1760353408170,1.31889598,195.65,195.54,10.02956343]
[1760353408378,1.31889598,195.65,195.56,10.02956343]
[1760353408575,10.02956343,195.63,195.57,10.02956343]
[1760353408779,20.8,195.58,195.44,19.99999999]
[1760353409081,10.02956343,195.54,195.48,10.02956343]
[1760353409282,10.02956343,195.57,195.51,10.02956343]
[1760353409462,0.63886333,195.66,195.56,10.02956343]
[1760353409665,5.54,195.67,195.65,10.02956343]
[1760353409867,0.63830873,195.83,195.66,10.71956343]
[1760353410073,0.73817838,195.87,195.76,10.02956343]
[1760353410581,0.73817838,195.87,195.76,10.71956343]
[1760353410876,10.02956343,195.77,195.62,10.87647521]
[1760353411176,10.02956343,195.76,195.64,10.87647521]
[1760353411353,0.68,195.77,195.64,10.87647521]
[1760353411558,0.68,195.77,195.69,10.02956343]
[1760353411979,0.68,195.77,195.71,10.02956343]
[1760353412151,0.68,195.82,195.76,10.02956343]
[1760353412473,0.63821096,195.86,195.73,10.87647521]
[1760353412474,0.63821096,195.86,195.74,10.87647521]
[1760353412679,20.8,195.8,195.76,10.02956343]
[1760353412884,0.68,195.8,195.7,10.87647521]
[1760353413079,1.31840653,195.8,195.7,10.87647521]
[1760353413289,0.68,195.8,195.72,10.02956343]
[1760353413462,20.8,195.76,195.72,10.02956343]
[1760353413660,20.8,195.76,195.71,10.87647521]
[1760353413886,30.82956343,195.78,195.71,20.90603864]
[1760353414057,20.8,195.75,195.69,20.90603864]
[1760353414380,10.02956343,195.7,195.58,0.69]
[1760353414685,20.8,195.69,195.66,10.02956343]
[1760353414853,20.8,195.69,195.63,10.87647521]
[1760353415055,0.68,195.7,195.56,0.69]
[1760353415261,0.68,195.7,195.61,10.02956343]
[1760353415564,20.8,195.69,195.61,10.02956343]
[1760353415771,10.02956343,195.67,195.61,10.02956343]
[1760353415967,0.68,195.67,195.59,10.02956343]
[1760353416170,10.02956343,195.68,195.62,10.02956343]
[1760353416372,0.10025912,195.63,195.62,10.87647521]
[1760353416577,0.1043497,195.64,195.62,0.69]
[1760353416779,0.1043497,195.64,195.63,10.87647521]
[1760353416980,0.1043497,195.64,195.59,10.87647521]
[1760353417184,0.1043497,195.64,195.61,10.87647521]
[1760353417393,0.09253923,195.65,195.61,10.87647521]
[1760353417600,0.09334996,195.7,195.66,10.87647521]
[1760353417767,0.09334996,195.7,195.69,10.87647521]
[1760353418370,0.09334996,195.7,195.69,10.02956343]
[1760353418793,0.09334996,195.7,195.61,10.87647521]
[1760353418980,0.09334996,195.7,195.64,10.87647521]
[1760353419175,0.09334996,195.7,195.69,20.90603864]
[1760353419480,0.09334996,195.7,195.69,10.02956343]
[1760353419678,0.09334996,195.7,195.69,20.90603864]
[1760353420607,0.09334996,195.7,195.68,10.02956343]
[1760353420902,0.09334996,195.7,195.66,10.87647521]
[1760353421104,0.09334996,195.7,195.67,10.02956343]
[1760353421396,0.09334996,195.7,195.69,10.02956343]
[1760353422389,0.09334996,195.7,195.69,20.90603864]
[1760353422693,0.68,195.83,195.7,31.67647521]
[1760353422901,0.68,195.83,195.69,20.90603864]
[1760353422902,0.68,195.86,195.82,10.02956343]
[1760353423200,0.1,195.89,195.84,10.02956343]
[1760353423496,20.9,195.89,195.83,10.02956343]